{"text_format":"3","workbook":"xlsx","n_sheets":1,"sheets":["Wykaz zapasów"],"not_rendered":{"images":1,"defined_names":3},"read":"whole","date_system":"1900"}

{"sheet":"Wykaz zapasów","index":0,"n_rows":28,"n_cols":13,"rows_kept":28}
[{"$nulls":12}," "]
[{"$nulls":10},"Wyróżnić pozycje do ponownego zamówienia?","Tak"]
[null,"Dla ponownego zamówienia","Identyfikator magazynowy","Nazwa","Opis","Cena jednostkowa","Ilość w magazynie","Wartość zapasów","Poziom ponownego zamówienia","Czas ponownego zamówienia w dniach","Ilość do ponownego zamówienia","Wycofane?"]
[null,{"$f":"IFERROR((Tabela_Wykaz_zapasów[[#This Row],[Ilość w magazynie]]<=Tabela_Wykaz_zapasów[[#This Row],[Poziom ponownego zamówienia]])*(Tabela_Wykaz_zapasów[[#This Row],[Wycofane?]]=\"\")*wart_wyróżnienia,0)","v":1},"IN0001","Pozycja 1","Opis 1",{"v":51,"d":"51.00 zł"},25,{"$f":"Tabela_Wykaz_zapasów[[#This Row],[Cena jednostkowa]]*Tabela_Wykaz_zapasów[[#This Row],[Ilość w magazynie]]","v":{"v":1275,"d":"1,275.00 zł"}},29,13,50]
[null,{"$f":"IFERROR((Tabela_Wykaz_zapasów[[#This Row],[Ilość w magazynie]]<=Tabela_Wykaz_zapasów[[#This Row],[Poziom ponownego zamówienia]])*(Tabela_Wykaz_zapasów[[#This Row],[Wycofane?]]=\"\")*wart_wyróżnienia,0)","v":1},"IN0002","Pozycja 2","Opis 2",{"v":93,"d":"93.00 zł"},132,{"$f":"Tabela_Wykaz_zapasów[[#This Row],[Cena jednostkowa]]*Tabela_Wykaz_zapasów[[#This Row],[Ilość w magazynie]]","v":{"v":12276,"d":"12,276.00 zł"}},231,4,50]
[null,{"$f":"IFERROR((Tabela_Wykaz_zapasów[[#This Row],[Ilość w magazynie]]<=Tabela_Wykaz_zapasów[[#This Row],[Poziom ponownego zamówienia]])*(Tabela_Wykaz_zapasów[[#This Row],[Wycofane?]]=\"\")*wart_wyróżnienia,0)","v":0},"IN0003","Pozycja 3","Opis 3",{"v":57,"d":"57.00 zł"},151,{"$f":"Tabela_Wykaz_zapasów[[#This Row],[Cena jednostkowa]]*Tabela_Wykaz_zapasów[[#This Row],[Ilość w magazynie]]","v":{"v":8607,"d":"8,607.00 zł"}},114,11,150]
[null,{"$f":"IFERROR((Tabela_Wykaz_zapasów[[#This Row],[Ilość w magazynie]]<=Tabela_Wykaz_zapasów[[#This Row],[Poziom ponownego zamówienia]])*(Tabela_Wykaz_zapasów[[#This Row],[Wycofane?]]=\"\")*wart_wyróżnienia,0)","v":0},"IN0004","Pozycja 4","Opis 4",{"v":19,"d":"19.00 zł"},186,{"$f":"Tabela_Wykaz_zapasów[[#This Row],[Cena jednostkowa]]*Tabela_Wykaz_zapasów[[#This Row],[Ilość w magazynie]]","v":{"v":3534,"d":"3,534.00 zł"}},158,6,50]
[null,{"$f":"IFERROR((Tabela_Wykaz_zapasów[[#This Row],[Ilość w magazynie]]<=Tabela_Wykaz_zapasów[[#This Row],[Poziom ponownego zamówienia]])*(Tabela_Wykaz_zapasów[[#This Row],[Wycofane?]]=\"\")*wart_wyróżnienia,0)","v":0},"IN0005","Pozycja 5","Opis 5",{"v":75,"d":"75.00 zł"},62,{"$f":"Tabela_Wykaz_zapasów[[#This Row],[Cena jednostkowa]]*Tabela_Wykaz_zapasów[[#This Row],[Ilość w magazynie]]","v":{"v":4650,"d":"4,650.00 zł"}},39,12,50]
[null,{"$f":"IFERROR((Tabela_Wykaz_zapasów[[#This Row],[Ilość w magazynie]]<=Tabela_Wykaz_zapasów[[#This Row],[Poziom ponownego zamówienia]])*(Tabela_Wykaz_zapasów[[#This Row],[Wycofane?]]=\"\")*wart_wyróżnienia,0)","v":1},"IN0006","Pozycja 6","Opis 6",{"v":11,"d":"11.00 zł"},5,{"$f":"Tabela_Wykaz_zapasów[[#This Row],[Cena jednostkowa]]*Tabela_Wykaz_zapasów[[#This Row],[Ilość w magazynie]]","v":{"v":55,"d":"55.00 zł"}},9,13,150]
[null,{"$f":"IFERROR((Tabela_Wykaz_zapasów[[#This Row],[Ilość w magazynie]]<=Tabela_Wykaz_zapasów[[#This Row],[Poziom ponownego zamówienia]])*(Tabela_Wykaz_zapasów[[#This Row],[Wycofane?]]=\"\")*wart_wyróżnienia,0)","v":0},"IN0007","Pozycja 7","Opis 7",{"v":56,"d":"56.00 zł"},58,{"$f":"Tabela_Wykaz_zapasów[[#This Row],[Cena jednostkowa]]*Tabela_Wykaz_zapasów[[#This Row],[Ilość w magazynie]]","v":{"v":3248,"d":"3,248.00 zł"}},109,7,100,"Tak"]
[null,{"$f":"IFERROR((Tabela_Wykaz_zapasów[[#This Row],[Ilość w magazynie]]<=Tabela_Wykaz_zapasów[[#This Row],[Poziom ponownego zamówienia]])*(Tabela_Wykaz_zapasów[[#This Row],[Wycofane?]]=\"\")*wart_wyróżnienia,0)","v":1},"IN0008","Pozycja 8","Opis 8",{"v":38,"d":"38.00 zł"},101,{"$f":"Tabela_Wykaz_zapasów[[#This Row],[Cena jednostkowa]]*Tabela_Wykaz_zapasów[[#This Row],[Ilość w magazynie]]","v":{"v":3838,"d":"3,838.00 zł"}},162,3,100]
[null,{"$f":"IFERROR((Tabela_Wykaz_zapasów[[#This Row],[Ilość w magazynie]]<=Tabela_Wykaz_zapasów[[#This Row],[Poziom ponownego zamówienia]])*(Tabela_Wykaz_zapasów[[#This Row],[Wycofane?]]=\"\")*wart_wyróżnienia,0)","v":0},"IN0009","Pozycja 9","Opis 9",{"v":59,"d":"59.00 zł"},122,{"$f":"Tabela_Wykaz_zapasów[[#This Row],[Cena jednostkowa]]*Tabela_Wykaz_zapasów[[#This Row],[Ilość w magazynie]]","v":{"v":7198,"d":"7,198.00 zł"}},82,3,150]
[null,{"$f":"IFERROR((Tabela_Wykaz_zapasów[[#This Row],[Ilość w magazynie]]<=Tabela_Wykaz_zapasów[[#This Row],[Poziom ponownego zamówienia]])*(Tabela_Wykaz_zapasów[[#This Row],[Wycofane?]]=\"\")*wart_wyróżnienia,0)","v":1},"IN0010","Pozycja 10","Opis 10",{"v":50,"d":"50.00 zł"},175,{"$f":"Tabela_Wykaz_zapasów[[#This Row],[Cena jednostkowa]]*Tabela_Wykaz_zapasów[[#This Row],[Ilość w magazynie]]","v":{"v":8750,"d":"8,750.00 zł"}},283,8,150]
[null,{"$f":"IFERROR((Tabela_Wykaz_zapasów[[#This Row],[Ilość w magazynie]]<=Tabela_Wykaz_zapasów[[#This Row],[Poziom ponownego zamówienia]])*(Tabela_Wykaz_zapasów[[#This Row],[Wycofane?]]=\"\")*wart_wyróżnienia,0)","v":1},"IN0011","Pozycja 11","Opis 11",{"v":59,"d":"59.00 zł"},176,{"$f":"Tabela_Wykaz_zapasów[[#This Row],[Cena jednostkowa]]*Tabela_Wykaz_zapasów[[#This Row],[Ilość w magazynie]]","v":{"v":10384,"d":"10,384.00 zł"}},229,1,100]
[null,{"$f":"IFERROR((Tabela_Wykaz_zapasów[[#This Row],[Ilość w magazynie]]<=Tabela_Wykaz_zapasów[[#This Row],[Poziom ponownego zamówienia]])*(Tabela_Wykaz_zapasów[[#This Row],[Wycofane?]]=\"\")*wart_wyróżnienia,0)","v":1},"IN0012","Pozycja 12","Opis 12",{"v":18,"d":"18.00 zł"},22,{"$f":"Tabela_Wykaz_zapasów[[#This Row],[Cena jednostkowa]]*Tabela_Wykaz_zapasów[[#This Row],[Ilość w magazynie]]","v":{"v":396,"d":"396.00 zł"}},36,12,50]
[null,{"$f":"IFERROR((Tabela_Wykaz_zapasów[[#This Row],[Ilość w magazynie]]<=Tabela_Wykaz_zapasów[[#This Row],[Poziom ponownego zamówienia]])*(Tabela_Wykaz_zapasów[[#This Row],[Wycofane?]]=\"\")*wart_wyróżnienia,0)","v":1},"IN0013","Pozycja 13","Opis 13",{"v":26,"d":"26.00 zł"},72,{"$f":"Tabela_Wykaz_zapasów[[#This Row],[Cena jednostkowa]]*Tabela_Wykaz_zapasów[[#This Row],[Ilość w magazynie]]","v":{"v":1872,"d":"1,872.00 zł"}},102,9,100]
[null,{"$f":"IFERROR((Tabela_Wykaz_zapasów[[#This Row],[Ilość w magazynie]]<=Tabela_Wykaz_zapasów[[#This Row],[Poziom ponownego zamówienia]])*(Tabela_Wykaz_zapasów[[#This Row],[Wycofane?]]=\"\")*wart_wyróżnienia,0)","v":1},"IN0014","Pozycja 14","Opis 14",{"v":42,"d":"42.00 zł"},62,{"$f":"Tabela_Wykaz_zapasów[[#This Row],[Cena jednostkowa]]*Tabela_Wykaz_zapasów[[#This Row],[Ilość w magazynie]]","v":{"v":2604,"d":"2,604.00 zł"}},83,2,100]
[null,{"$f":"IFERROR((Tabela_Wykaz_zapasów[[#This Row],[Ilość w magazynie]]<=Tabela_Wykaz_zapasów[[#This Row],[Poziom ponownego zamówienia]])*(Tabela_Wykaz_zapasów[[#This Row],[Wycofane?]]=\"\")*wart_wyróżnienia,0)","v":0},"IN0015","Pozycja 15","Opis 15",{"v":32,"d":"32.00 zł"},46,{"$f":"Tabela_Wykaz_zapasów[[#This Row],[Cena jednostkowa]]*Tabela_Wykaz_zapasów[[#This Row],[Ilość w magazynie]]","v":{"v":1472,"d":"1,472.00 zł"}},23,15,50]
[null,{"$f":"IFERROR((Tabela_Wykaz_zapasów[[#This Row],[Ilość w magazynie]]<=Tabela_Wykaz_zapasów[[#This Row],[Poziom ponownego zamówienia]])*(Tabela_Wykaz_zapasów[[#This Row],[Wycofane?]]=\"\")*wart_wyróżnienia,0)","v":1},"IN0016","Pozycja 16","Opis 16",{"v":90,"d":"90.00 zł"},96,{"$f":"Tabela_Wykaz_zapasów[[#This Row],[Cena jednostkowa]]*Tabela_Wykaz_zapasów[[#This Row],[Ilość w magazynie]]","v":{"v":8640,"d":"8,640.00 zł"}},180,3,50]
[null,{"$f":"IFERROR((Tabela_Wykaz_zapasów[[#This Row],[Ilość w magazynie]]<=Tabela_Wykaz_zapasów[[#This Row],[Poziom ponownego zamówienia]])*(Tabela_Wykaz_zapasów[[#This Row],[Wycofane?]]=\"\")*wart_wyróżnienia,0)","v":0},"IN0017","Pozycja 17","Opis 17",{"v":97,"d":"97.00 zł"},57,{"$f":"Tabela_Wykaz_zapasów[[#This Row],[Cena jednostkowa]]*Tabela_Wykaz_zapasów[[#This Row],[Ilość w magazynie]]","v":{"v":5529,"d":"5,529.00 zł"}},98,12,50,"Tak"]
[null,{"$f":"IFERROR((Tabela_Wykaz_zapasów[[#This Row],[Ilość w magazynie]]<=Tabela_Wykaz_zapasów[[#This Row],[Poziom ponownego zamówienia]])*(Tabela_Wykaz_zapasów[[#This Row],[Wycofane?]]=\"\")*wart_wyróżnienia,0)","v":1},"IN0018","Pozycja 18","Opis 18",{"v":12,"d":"12.00 zł"},6,{"$f":"Tabela_Wykaz_zapasów[[#This Row],[Cena jednostkowa]]*Tabela_Wykaz_zapasów[[#This Row],[Ilość w magazynie]]","v":{"v":72,"d":"72.00 zł"}},7,13,50]
[null,{"$f":"IFERROR((Tabela_Wykaz_zapasów[[#This Row],[Ilość w magazynie]]<=Tabela_Wykaz_zapasów[[#This Row],[Poziom ponownego zamówienia]])*(Tabela_Wykaz_zapasów[[#This Row],[Wycofane?]]=\"\")*wart_wyróżnienia,0)","v":1},"IN0019","Pozycja 19","Opis 19",{"v":82,"d":"82.00 zł"},143,{"$f":"Tabela_Wykaz_zapasów[[#This Row],[Cena jednostkowa]]*Tabela_Wykaz_zapasów[[#This Row],[Ilość w magazynie]]","v":{"v":11726,"d":"11,726.00 zł"}},164,12,150]
[null,{"$f":"IFERROR((Tabela_Wykaz_zapasów[[#This Row],[Ilość w magazynie]]<=Tabela_Wykaz_zapasów[[#This Row],[Poziom ponownego zamówienia]])*(Tabela_Wykaz_zapasów[[#This Row],[Wycofane?]]=\"\")*wart_wyróżnienia,0)","v":0},"IN0020","Pozycja 20","Opis 20",{"v":16,"d":"16.00 zł"},124,{"$f":"Tabela_Wykaz_zapasów[[#This Row],[Cena jednostkowa]]*Tabela_Wykaz_zapasów[[#This Row],[Ilość w magazynie]]","v":{"v":1984,"d":"1,984.00 zł"}},113,14,50]
[null,{"$f":"IFERROR((Tabela_Wykaz_zapasów[[#This Row],[Ilość w magazynie]]<=Tabela_Wykaz_zapasów[[#This Row],[Poziom ponownego zamówienia]])*(Tabela_Wykaz_zapasów[[#This Row],[Wycofane?]]=\"\")*wart_wyróżnienia,0)","v":0},"IN0021","Pozycja 21","Opis 21",{"v":19,"d":"19.00 zł"},112,{"$f":"Tabela_Wykaz_zapasów[[#This Row],[Cena jednostkowa]]*Tabela_Wykaz_zapasów[[#This Row],[Ilość w magazynie]]","v":{"v":2128,"d":"2,128.00 zł"}},75,11,50]
[null,{"$f":"IFERROR((Tabela_Wykaz_zapasów[[#This Row],[Ilość w magazynie]]<=Tabela_Wykaz_zapasów[[#This Row],[Poziom ponownego zamówienia]])*(Tabela_Wykaz_zapasów[[#This Row],[Wycofane?]]=\"\")*wart_wyróżnienia,0)","v":0},"IN0022","Pozycja 22","Opis 22",{"v":24,"d":"24.00 zł"},182,{"$f":"Tabela_Wykaz_zapasów[[#This Row],[Cena jednostkowa]]*Tabela_Wykaz_zapasów[[#This Row],[Ilość w magazynie]]","v":{"v":4368,"d":"4,368.00 zł"}},132,15,150]
[null,{"$f":"IFERROR((Tabela_Wykaz_zapasów[[#This Row],[Ilość w magazynie]]<=Tabela_Wykaz_zapasów[[#This Row],[Poziom ponownego zamówienia]])*(Tabela_Wykaz_zapasów[[#This Row],[Wycofane?]]=\"\")*wart_wyróżnienia,0)","v":0},"IN0023","Pozycja 23","Opis 23",{"v":29,"d":"29.00 zł"},106,{"$f":"Tabela_Wykaz_zapasów[[#This Row],[Cena jednostkowa]]*Tabela_Wykaz_zapasów[[#This Row],[Ilość w magazynie]]","v":{"v":3074,"d":"3,074.00 zł"}},142,1,150,"Tak"]
[null,{"$f":"IFERROR((Tabela_Wykaz_zapasów[[#This Row],[Ilość w magazynie]]<=Tabela_Wykaz_zapasów[[#This Row],[Poziom ponownego zamówienia]])*(Tabela_Wykaz_zapasów[[#This Row],[Wycofane?]]=\"\")*wart_wyróżnienia,0)","v":0},"IN0024","Pozycja 24","Opis 24",{"v":75,"d":"75.00 zł"},173,{"$f":"Tabela_Wykaz_zapasów[[#This Row],[Cena jednostkowa]]*Tabela_Wykaz_zapasów[[#This Row],[Ilość w magazynie]]","v":{"v":12975,"d":"12,975.00 zł"}},127,9,100]
[null,{"$f":"IFERROR((Tabela_Wykaz_zapasów[[#This Row],[Ilość w magazynie]]<=Tabela_Wykaz_zapasów[[#This Row],[Poziom ponownego zamówienia]])*(Tabela_Wykaz_zapasów[[#This Row],[Wycofane?]]=\"\")*wart_wyróżnienia,0)","v":0},"IN0025","Pozycja 25","Opis 25",{"v":14,"d":"14.00 zł"},28,{"$f":"Tabela_Wykaz_zapasów[[#This Row],[Cena jednostkowa]]*Tabela_Wykaz_zapasów[[#This Row],[Ilość w magazynie]]","v":{"v":392,"d":"392.00 zł"}},21,8,50]